lending/lending_fUSD_20240710
["ID","MTS","AMOUNT","RATE_DAILY","PERIOD"]
[331630847,1720594235273,-200.0,0.00013698,2]
[331630848,1720594235282,-500.0,0.00013698,2]
[331630849,1720594235292,-341.22999224,0.00013698,2]
[331630850,1720594235301,-500.0,0.00013698,2]
[331630851,1720594235310,-870.51,0.00013698,2]
[331630852,1720594235319,-1308.29,0.00013698,2]
[331630853,1720594235328,-500.0,0.00013698,2]
[331630854,1720594235338,-500.0,0.00013698,2]
[331630855,1720594235347,-1024.81,0.00013698,2]
[331630856,1720594235356,-500.0,0.00013698,2]
[331630857,1720594235366,-500.0,0.00013698,2]
[331630858,1720594235375,-500.0,0.00013698,2]
[331630859,1720594235385,-1966.88,0.00013698,2]
[331630860,1720594235394,-500.0,0.00013698,2]
[331630861,1720594235403,-619.29,0.00013698,2]
[331630862,1720594235414,-516.88,0.00013698,2]
[331630863,1720594235422,-727.47,0.00013698,2]
[331630864,1720594235431,-560.85,0.00013698,2]
[331630865,1720594235440,-775.32,0.00013698,2]
[331630866,1720594235449,-500.0,0.00013698,2]
[331630867,1720594235458,-507.87,0.00013698,2]
[331630868,1720594235467,-563.4,0.00013698,2]
[331630869,1720594235476,-513.58,0.00013698,2]
[331630870,1720594235485,-500.0,0.00013698,2]
[331630871,1720594235494,-500.0,0.00013698,2]
[331630872,1720594235504,-797.04,0.00013698,2]
[331630873,1720594235513,-856.44,0.00013698,2]
[331630874,1720594235522,-1699.55,0.00013698,2]
[331630875,1720594235531,-237.79692589,0.00013698,2]
[331630876,1720594235540,-736.23,0.00013698,2]
[331630877,1720594235549,-613.29,0.00013698,2]
[331630878,1720594235558,-500.0,0.00013698,2]
[331630879,1720594235568,-500.0,0.00013698,2]
[331630880,1720594235577,-500.0,0.00013698,2]
[331630881,1720594235586,-595.31,0.00013698,2]
[331630882,1720594235595,-500.0,0.00013698,2]
[331630883,1720594235604,-500.0,0.00013698,2]
[331630884,1720594235612,-816.49,0.00013698,2]
[331630885,1720594235622,-1204.81,0.00013698,2]
[331630886,1720594235631,-500.0,0.00013698,2]
[331630887,1720594235641,-500.0,0.00013698,2]
[331630888,1720594235650,-826.96,0.00013698,2]
[331630889,1720594235659,-678.67,0.00013698,2]
[331630890,1720594235668,-500.0,0.00013698,2]
[331630891,1720594235677,-500.0,0.00013698,2]
[331630892,1720594235689,-500.0,0.00013698,2]
[331630893,1720594235699,-500.0,0.00013698,2]
[331630894,1720594235708,-500.0,0.00013698,2]
[331630895,1720594235717,-800.49,0.00013698,2]
[331630896,1720594235727,-500.0,0.00013698,2]
[331630897,1720594235735,-500.0,0.00013698,2]
[331630898,1720594235744,-500.0,0.00013698,2]
[331630899,1720594235753,-500.0,0.00013698,2]
[331630900,1720594235763,-500.0,0.00013698,2]
[331630901,1720594235772,-689.52,0.00013698,2]
[331630902,1720594235782,-507.63,0.00013698,2]
[331630903,1720594235792,-500.0,0.00013698,2]
[331630904,1720594235801,-595.45,0.00013698,2]
[331630905,1720594235810,-922.94,0.00013698,2]
[331630906,1720594235821,-500.0,0.00013698,2]
[331630907,1720594235831,-696.82,0.00013698,2]
[331630908,1720594235841,-500.0,0.00013698,2]
[331630909,1720594235851,-544.33,0.00013698,2]
[331630910,1720594235862,-777.5,0.00013698,2]
[331630911,1720594235871,-1593.47,0.00013698,2]
[331630912,1720594235881,-778.13,0.00013698,2]
[331630913,1720594235891,-500.0,0.00013698,2]
[331630914,1720594235900,-500.0,0.00013698,2]
[331630915,1720594235909,-947.1,0.00013698,2]
[331630916,1720594235920,-500.93,0.00013698,2]
[331630917,1720594235931,-500.0,0.00013698,2]
[331630918,1720594235943,-500.0,0.00013698,2]
[331630919,1720594235952,-500.0,0.00013698,2]
[331630920,1720594235963,-641.3,0.00013698,2]
[331630921,1720594235972,-500.0,0.00013698,2]
[331630922,1720594235981,-690.67,0.00013698,2]
[331630923,1720594235992,-500.0,0.00013698,2]
[331630924,1720594236002,-500.0,0.00013698,2]
[331630925,1720594236012,-500.0,0.00013698,2]
[331630926,1720594236023,-1009.19,0.00013698,2]
[331630927,1720594236032,-500.0,0.00013698,2]
[331630928,1720594236043,-977.2,0.00013698,2]
[331630929,1720594236053,-549.62,0.00013698,2]
[331630930,1720594236062,-500.0,0.00013698,2]
[331630931,1720594236072,-500.0,0.00013698,2]
[331630932,1720594236081,-500.0,0.00013698,2]
[331630933,1720594236091,-500.0,0.00013698,2]
[331630934,1720594236100,-500.0,0.00013698,2]
[331630935,1720594236110,-500.0,0.00013698,2]
[331630936,1720594236120,-914.65,0.00013698,2]
[331630937,1720594236130,-500.0,0.00013698,2]
[331630938,1720594236139,-1675.91,0.00013698,2]
[331630939,1720594236150,-500.0,0.00013698,2]
[331630940,1720594236160,-500.0,0.00013698,2]
[331630941,1720594236169,-500.0,0.00013698,2]
[331630942,1720594236178,-560.97,0.00013698,2]
[331630943,1720594236189,-738.59,0.00013698,2]
[331630944,1720594236200,-527.97,0.00013698,2]
[331630945,1720594236208,-500.0,0.00013698,2]
[331630946,1720594236218,-500.0,0.00013698,2]
[331630947,1720594236228,-500.0,0.00013698,2]
[331630948,1720594236238,-500.0,0.00013698,2]
[331630949,1720594236248,-500.0,0.00013698,2]
[331630950,1720594236259,-737.47,0.00013698,2]
[331630951,1720594236268,-500.0,0.00013698,2]
[331630952,1720594236279,-500.0,0.00013698,2]
[331630953,1720594236289,-500.0,0.00013698,2]
[331630954,1720594236298,-500.0,0.00013698,2]
[331630955,1720594236307,-500.0,0.00013698,2]
[331630956,1720594236317,-500.0,0.00013698,2]
[331630957,1720594236326,-1053.37,0.00013698,2]
[331630958,1720594236335,-500.0,0.00013698,2]
[331630959,1720594236344,-500.0,0.00013698,2]
[331630960,1720594236353,-668.88,0.00013698,2]
[331630961,1720594236362,-500.0,0.00013698,2]
[331630962,1720594236371,-768.49,0.00013698,2]
[331630963,1720594236381,-500.0,0.00013698,2]
[331630964,1720594236390,-805.84,0.00013698,2]
[331630965,1720594236399,-500.0,0.00013698,2]
[331630966,1720594236408,-1892.32,0.00013698,2]
[331630967,1720594236419,-1775.51,0.00013698,2]
[331630968,1720594236428,-500.0,0.00013698,2]
[331630969,1720594236437,-731.63,0.00013698,2]
[331630970,1720594236446,-517.22,0.00013698,2]
[331630971,1720594236456,-500.0,0.00013698,2]
[331630972,1720594236465,-513.26,0.00013698,2]
[331630973,1720594236474,-662.96,0.00013698,2]
[331630974,1720594236483,-500.0,0.00013698,2]
[331630975,1720594236492,-500.0,0.00013698,2]
[331630976,1720594236501,-500.0,0.00013698,2]
[331630977,1720594236510,-500.0,0.00013698,2]
[331630978,1720594236519,-500.0,0.00013698,2]
[331630979,1720594236528,-500.0,0.00013698,2]
[331630980,1720594236537,-1345.54,0.00013698,2]
[331630981,1720594236546,-1153.52,0.00013698,2]
[331630982,1720594236555,-500.0,0.00013698,2]
[331630983,1720594236564,-610.65,0.00013698,2]
[331630984,1720594236573,-1999.38,0.00013698,2]
[331630985,1720594236582,-500.0,0.00013698,2]
[331630986,1720594236591,-500.0,0.00013698,2]
[331630987,1720594236601,-500.0,0.00013698,2]
[331630988,1720594236610,-500.0,0.00013698,2]
[331630989,1720594236619,-500.0,0.00013698,2]
[331630990,1720594236629,-595.69,0.00013698,2]
[331630991,1720594236638,-500.0,0.00013698,2]
[331630992,1720594236648,-1502.24,0.00013698,2]
[331630993,1720594236657,-500.0,0.00013698,2]
[331630994,1720594236666,-500.0,0.00013698,2]
[331630995,1720594236675,-500.0,0.00013698,2]
[331630996,1720594236684,-996.07,0.00013698,2]
[331630997,1720594236694,-500.0,0.00013698,2]
[331630998,1720594236703,-500.0,0.00013698,2]
[331630999,1720594236713,-210.74088191,0.00013698,2]
[331631000,1720594236722,-500.0,0.00013698,2]
[331631001,1720594236731,-500.0,0.00013698,2]
[331631002,1720594236739,-1290.95,0.00013698,2]
[331631003,1720594236748,-796.63,0.00013698,2]
[331631004,1720594236757,-737.55,0.00013698,2]
[331631005,1720594236767,-1184.38,0.00013698,2]
[331631006,1720594236776,-500.0,0.00013698,2]
[331631007,1720594236785,-584.67285792,0.00013698,2]
[331631008,1720594236811,-112.59714208,0.00013698,2]
[331631009,1720594236821,-512.57,0.00013698,2]
[331631010,1720594236830,-500.0,0.00013698,2]
[331631011,1720594236839,-823.5,0.00013698,2]
[331631012,1720594236848,-533.11,0.00013698,2]
[331631013,1720594236857,-500.0,0.00013698,2]
[331631014,1720594236867,-500.0,0.00013698,2]
[331631015,1720594236876,-1129.72,0.00013698,2]
[331631016,1720594236886,-500.0,0.00013698,2]
[331631017,1720594236897,-500.0,0.00013698,2]
[331631018,1720594236907,-500.0,0.00013698,2]
[331631019,1720594236918,-500.0,0.00013698,2]
[331631020,1720594236929,-1082.75,0.00013698,2]
[331631021,1720594236940,-73.29587837,0.00013698,2]
[331631022,1720594236954,-501.89412163,0.00013698,2]
[331631023,1720594236964,-500.0,0.00013698,2]
[331631024,1720594236973,-562.61,0.00013698,2]
[331631025,1720594236983,-656.9,0.00013698,2]
[331631026,1720594236992,-500.0,0.00013698,2]
[331631027,1720594237003,-500.0,0.00013698,2]
[331631028,1720594237014,-631.72,0.00013698,2]
[331631029,1720594237024,-587.8,0.00013698,2]
[331631030,1720594237035,-631.72,0.00013698,2]
[331631031,1720594237044,-631.72,0.00013698,2]
[331631032,1720594237053,-631.72,0.00013698,2]
[331631033,1720594237062,-631.72,0.00013698,2]
[331631035,1720594237071,-631.72,0.00013698,2]
[331631036,1720594237081,-500.0,0.00013698,2]
[331631037,1720594237090,-500.0,0.00013698,2]
[331631038,1720594237099,-1288.81,0.00013698,2]
[331631039,1720594237109,-500.0,0.00013698,2]
[331631040,1720594237120,-500.0,0.00013698,2]
[331631041,1720594237129,-500.0,0.00013698,2]
[331631042,1720594237139,-500.0,0.00013698,2]
[331631043,1720594237148,-1038.53,0.00013698,2]
[331631044,1720594237160,-887.82,0.00013698,2]
[331631045,1720594237170,-1322.73,0.00013698,2]
[331631046,1720594237179,-500.0,0.00013698,2]
[331631047,1720594237189,-500.0,0.00013698,2]
[331631048,1720594237198,-643.45,0.00013698,2]
[331631049,1720594237208,-500.0,0.00013698,2]
[331631050,1720594237217,-500.0,0.00013698,2]
[331631051,1720594237226,-2000.0,0.00013698,2]
[331631052,1720594237236,-500.0,0.00013698,2]
[331631053,1720594237245,-500.0,0.00013698,2]
[331631054,1720594237254,-711.12,0.00013698,2]
[331631055,1720594237263,-200.0,0.00013698,2]
[331631056,1720594237273,-1542.33,0.00013698,2]
[331631057,1720594237282,-919.02,0.00013698,2]
[331631058,1720594237292,-1080.28,0.00013698,2]
[331631059,1720594237302,-588.8,0.00013698,2]
[331631060,1720594237311,-500.0,0.00013698,2]
[331631061,1720594237321,-500.0,0.00013698,2]
[331631062,1720594237330,-500.0,0.00013698,2]
[331631063,1720594237339,-1156.69,0.00013698,2]
[331631065,1720594237349,-500.0,0.00013698,2]
[331631066,1720594237359,-1145.7,0.00013698,2]
[331631067,1720594237368,-500.0,0.00013698,2]
[331631068,1720594237378,-716.99,0.00013698,2]
[331631069,1720594237388,-500.0,0.00013698,2]
[331631070,1720594237397,-729.09,0.00013698,2]
[331631071,1720594237407,-530.03,0.00013698,2]
[331631072,1720594237417,-500.0,0.00013698,2]
[331631073,1720594237427,-224.35808847,0.00013698,2]
[331631074,1720594237436,-500.0,0.00013698,2]
[331631075,1720594237446,-500.0,0.00013698,2]
[331631076,1720594237456,-500.0,0.00013698,2]
[331631077,1720594237466,-500.0,0.00013698,2]
[331631078,1720594237475,-500.0,0.00013698,2]
[331631079,1720594237484,-500.0,0.00013698,2]
[331631080,1720594237494,-519.9,0.00013698,2]
[331631081,1720594237503,-500.0,0.00013698,2]
[331631082,1720594237512,-500.0,0.00013698,2]
[331631083,1720594237522,-500.0,0.00013698,2]
[331631084,1720594237531,-705.03,0.00013698,2]
[331631085,1720594237541,-500.0,0.00013698,2]
[331631086,1720594237550,-1142.86,0.00013698,2]
[331631087,1720594237560,-500.0,0.00013698,2]
[331631088,1720594237570,-500.0,0.00013698,2]
[331631089,1720594237579,-1369.32,0.00013698,2]
[331631090,1720594237589,-500.0,0.00013698,2]
[331631091,1720594237598,-936.06,0.00013698,2]
[331631092,1720594237608,-967.24,0.00013698,2]
[331631093,1720594237618,-607.3,0.00013698,2]
[331631094,1720594237627,-938.94,0.00013698,2]
[331631095,1720594237636,-500.0,0.00013698,2]
[331631096,1720594237646,-500.0,0.00013698,2]
[331631097,1720594237655,-500.0,0.00013698,2]
[331631098,1720594237664,-785.8,0.00013698,2]
[331631099,1720594237674,-1068.85,0.00013698,2]
[331631100,1720594237685,-1263.04,0.00013698,2]
[331631101,1720594237696,-1024.12,0.00013698,2]
[331631102,1720594237705,-617.93,0.00013698,2]
[331631103,1720594237715,-500.0,0.00013698,2]
[331631104,1720594237725,-1679.39,0.00013698,2]
[331631105,1720594237735,-732.39,0.00013698,2]
[331631106,1720594237745,-500.0,0.00013698,2]
[331631107,1720594237755,-642.02909883,0.00013698,2]
[331631108,1720594237765,-1017.25,0.00013698,2]
[331631109,1720594237775,-500.0,0.00013698,2]
[331631110,1720594237784,-1608.12,0.00013698,2]
[331631111,1720594237794,-541.62,0.00013698,2]
[331631112,1720594237804,-1182.96,0.00013698,2]
[331631113,1720594237814,-1643.56,0.00013698,2]
[331631114,1720594237824,-500.0,0.00013698,2]
[331631115,1720594237834,-1542.5,0.00013698,2]
[331631116,1720594237844,-1235.49,0.00013698,2]
[331631117,1720594237853,-709.21,0.00013698,2]
[331631118,1720594237863,-500.0,0.00013698,2]
[331631119,1720594237872,-2150.36,0.00013698,2]
[331631120,1720594237883,-500.0,0.00013698,2]
[331631121,1720594237893,-521.66,0.00013698,2]
[331631122,1720594237904,-1017.25,0.00013698,2]
[331631123,1720594237914,-1382.69,0.00013698,2]
[331631124,1720594237925,-500.0,0.00013698,2]
[331631125,1720594237935,-500.0,0.00013698,2]
[331631126,1720594237946,-527.83,0.00013698,2]
[331631127,1720594237955,-303.70497877,0.00013698,2]
[331631128,1720594237966,-1179.86,0.00013698,2]
[331631129,1720594237975,-1420.17,0.00013698,2]
[331631130,1720594237985,-500.0,0.00013698,2]
[331631131,1720594237994,-576.06,0.00013698,2]
[331631132,1720594238004,-2271.04,0.00013698,2]
[331631133,1720594238013,-500.0,0.00013698,2]
[331631134,1720594238024,-390.89496157,0.00013698,2]
[331631135,1720594238034,-556.63,0.00013698,2]
[331631136,1720594238044,-500.0,0.00013698,2]
[331631137,1720594238054,-555.74,0.00013698,2]
[331631138,1720594238064,-503.85,0.00013698,2]
[331631139,1720594238074,-633.42,0.00013698,2]
[331631140,1720594238084,-1513.62,0.00013698,2]
[331631141,1720594238094,-1000.0,0.00013698,2]
[331631142,1720594238104,-1640.61,0.00013698,2]
[331631143,1720594238114,-500.0,0.00013698,2]
[331631144,1720594238124,-500.0,0.00013698,2]
[331631145,1720594238133,-500.0,0.00013698,2]
[331631146,1720594238143,-1440.57,0.00013698,2]
[331631147,1720594238152,-997.28,0.00013698,2]
[331631148,1720594238163,-582.63,0.00013698,2]
[331631149,1720594238173,-564.02,0.00013698,2]
[331631150,1720594238183,-1485.38,0.00013698,2]
[331631151,1720594238194,-500.0,0.00013698,2]
[331631152,1720594238203,-1255.76,0.00013698,2]
[331631153,1720594238213,-500.0,0.00013698,2]
[331631154,1720594238222,-500.0,0.00013698,2]
[331631155,1720594238233,-500.0,0.00013698,2]
[331631156,1720594238242,-613.45,0.00013698,2]
[331631157,1720594238252,-500.0,0.00013698,2]
[331631158,1720594238262,-879.12,0.00013698,2]
[331631159,1720594238272,-500.0,0.00013698,2]
[331631160,1720594238282,-950.65,0.00013698,2]
[331631161,1720594238291,-500.0,0.00013698,2]
[331631162,1720594238302,-1429.85,0.00013698,2]
[331631163,1720594238311,-500.0,0.00013698,2]
[331631164,1720594238321,-500.0,0.00013698,2]
[331631165,1720594238331,-500.0,0.00013698,2]
[331631166,1720594238341,-697.89,0.00013698,2]
[331631167,1720594238351,-500.0,0.00013698,2]
[331631168,1720594238363,-500.0,0.00013698,2]
[331631169,1720594238373,-500.0,0.00013698,2]
[331631170,1720594238383,-1637.45,0.00013698,2]
[331631171,1720594238393,-1300.49,0.00013698,2]
[331631172,1720594238404,-1057.84,0.00013698,2]
[331631173,1720594238415,-1546.22,0.00013698,2]
[331631174,1720594238426,-463.13301054,0.00013698,2]
[331631175,1720594238436,-686.73,0.00013698,2]
[331631176,1720594238446,-500.0,0.00013698,2]
[331631177,1720594238456,-710.3,0.00013698,2]
[331631178,1720594238466,-714.86,0.00013698,2]
[331631179,1720594238477,-1038.82,0.00013698,2]
[331631180,1720594238486,-500.0,0.00013698,2]
[331631181,1720594238497,-2175.42,0.00013698,2]
[331631182,1720594238507,-522.01,0.00013698,2]
[331631183,1720594238516,-623.25,0.00013698,2]
[331631184,1720594238526,-1351.97,0.00013698,2]
[331631185,1720594238536,-500.0,0.00013698,2]
[331631186,1720594238546,-500.0,0.00013698,2]
[331631187,1720594238555,-523.74,0.00013698,2]
[331631188,1720594238564,-500.0,0.00013698,2]
[331631189,1720594238574,-500.0,0.00013698,2]
[331631190,1720594238585,-1373.52,0.00013698,2]
[331631191,1720594238594,-500.0,0.00013698,2]
[331631192,1720594238604,-1373.52,0.00013698,2]
[331631193,1720594238613,-1373.52,0.00013698,2]
[331631194,1720594238622,-544.72,0.00013698,2]
[331631195,1720594238632,-500.0,0.00013698,2]
[331631196,1720594238642,-1257.65,0.00013698,2]
[331631197,1720594238652,-1125.44,0.00013698,2]
[331631198,1720594238662,-500.0,0.00013698,2]
[331631199,1720594238672,-1026.48,0.00013698,2]
[331631200,1720594238682,-500.0,0.00013698,2]
[331631201,1720594238694,-676.29,0.00013698,2]
[331631202,1720594238706,-372.24303534,0.00013698,2]
[331631203,1720594238715,-799.49,0.00013698,2]
[331631204,1720594238726,-2179.88,0.00013698,2]
[331631205,1720594238735,-500.0,0.00013698,2]
[331631206,1720594238746,-500.0,0.00013698,2]
[331631207,1720594238756,-634.46,0.00013698,2]
[331631208,1720594238765,-500.0,0.00013698,2]
[331631209,1720594238775,-816.98,0.00013698,2]
[331631210,1720594238785,-1455.8,0.00013698,2]
[331631211,1720594238795,-991.42,0.00013698,2]
[331631212,1720594238804,-569.51,0.00013698,2]
[331631213,1720594238815,-1162.99,0.00013698,2]
[331631214,1720594238825,-525.82992699,0.00013698,2]
[331631215,1720594238835,-500.0,0.00013698,2]
[331631216,1720594238844,-500.0,0.00013698,2]
[331631217,1720594238855,-500.0,0.00013698,2]
[331631218,1720594238865,-1163.03,0.00013698,2]
[331631219,1720594238875,-2686.32,0.00013698,2]
[331631220,1720594238885,-500.0,0.00013698,2]
[331631221,1720594238895,-500.0,0.00013698,2]
[331631222,1720594238905,-525.95,0.00013698,2]
[331631223,1720594238918,-590.6,0.00013698,2]
[331631224,1720594238930,-1631.02,0.00013698,2]
[331631225,1720594238940,-1095.69,0.00013698,2]
[331631226,1720594238950,-500.0,0.00013698,2]
[331631227,1720594238961,-186.34981001,0.00013698,2]
[331631228,1720594238971,-500.0,0.00013698,2]
[331631229,1720594238981,-1622.05,0.00013698,2]
[331631230,1720594238992,-1735.43,0.00013698,2]
[331631231,1720594239002,-500.0,0.00013698,2]
[331631233,1720594239341,-500.0,0.00013698,2]
[331631234,1720594239354,-1194.27,0.00013698,2]
[331631235,1720594239365,-500.0,0.00013698,2]
[331631236,1720594239376,-2613.06,0.00013698,2]
[331631237,1720594239387,-500.0,0.00013698,2]
[331631238,1720594239398,-906.86,0.00013698,2]
[331631239,1720594239409,-678.18,0.00013698,2]
[331631240,1720594239420,-1952.38,0.00013698,2]
[331631243,1720594239431,-500.0,0.00013698,2]
[331631245,1720594239442,-500.0,0.00013698,2]
[331631247,1720594239452,-500.0,0.00013698,2]
[331631248,1720594239462,-500.0,0.00013698,2]
[331631249,1720594239472,-811.16,0.00013698,2]
[331631250,1720594239482,-939.0,0.00013698,2]
[331631251,1720594239493,-1072.15,0.00013698,2]
[331631252,1720594239503,-500.0,0.00013698,2]
[331631253,1720594239513,-1678.42,0.00013698,2]
[331631254,1720594239523,-500.0,0.00013698,2]
[331631255,1720594239533,-511.21,0.00013698,2]
[331631256,1720594239544,-500.0,0.00013698,2]
[331631257,1720594239554,-500.0,0.00013698,2]
[331631258,1720594239564,-506.06,0.00013698,2]
[331631259,1720594239573,-500.0,0.00013698,2]
[331631260,1720594239583,-1221.3,0.00013698,2]
[331631261,1720594239593,-830.61,0.00013698,2]
[331631262,1720594239603,-500.0,0.00013698,2]
[331631264,1720594239613,-500.0,0.00013698,2]
[331631266,1720594239623,-568.98,0.00013698,2]
[331631267,1720594239633,-579.23,0.00013698,2]
[331631268,1720594239643,-1798.51,0.00013698,2]
[331631269,1720594239653,-1171.97,0.00013698,2]
[331631271,1720594239663,-644.8,0.00013698,2]
[331631273,1720594239679,-500.0,0.00013698,2]
[331631274,1720594239692,-1102.41,0.00013698,2]
[331631275,1720594239703,-500.0,0.00013698,2]
[331631276,1720594239714,-500.0,0.00013698,2]
[331631277,1720594239725,-1065.22,0.00013698,2]
[331631278,1720594239735,-792.64,0.00013698,2]
[331631279,1720594239746,-500.0,0.00013698,2]
[331631280,1720594239756,-500.0,0.00013698,2]
[331631281,1720594239767,-500.0,0.00013698,2]
[331631282,1720594239778,-500.0,0.00013698,2]
[331631283,1720594239789,-734.69,0.00013698,2]
[331631284,1720594239799,-1504.52,0.00013698,2]
[331631285,1720594239810,-500.0,0.00013698,2]
[331631286,1720594239821,-500.0,0.00013698,2]
[331631287,1720594239831,-153.87820906,0.00013698,2]
[331631288,1720594239842,-500.0,0.00013698,2]
[331631289,1720594239852,-1350.39,0.00013698,2]
[331631290,1720594239863,-500.0,0.00013698,2]
[331631291,1720594239874,-2066.31,0.00013698,2]
[331631292,1720594239885,-739.23,0.00013698,2]
[331631293,1720594239896,-500.0,0.00013698,2]
[331631294,1720594239906,-500.0,0.00013698,2]
[331631295,1720594239918,-500.0,0.00013698,2]
[331631296,1720594239928,-508.64,0.00013698,2]
[331631297,1720594239939,-500.0,0.00013698,2]
[331631299,1720594239950,-500.0,0.00013698,2]
[331631301,1720594239960,-500.0,0.00013698,2]
[331631303,1720594239970,-1781.76,0.00013698,2]
[331631305,1720594239980,-1528.2,0.00013698,2]
[331631307,1720594239990,-500.0,0.00013698,2]
[331631309,1720594240001,-1631.88,0.00013698,2]
[331631311,1720594240011,-500.0,0.00013698,2]
[331631313,1720594240021,-639.54,0.00013698,2]
[331631315,1720594240032,-573.73,0.00013698,2]
[331631317,1720594240042,-500.0,0.00013698,2]
[331631319,1720594240052,-500.0,0.00013698,2]
[331631321,1720594240062,-1590.72,0.00013698,2]
[331631323,1720594240072,-605.02,0.00013698,2]
[331631325,1720594240082,-1051.37,0.00013698,2]
[331631326,1720594240092,-500.0,0.00013698,2]
[331631327,1720594240102,-500.0,0.00013698,2]
[331631328,1720594240111,-500.0,0.00013698,2]
[331631329,1720594240125,-1928.69,0.00013698,2]
[331631330,1720594240135,-1016.12,0.00013698,2]
[331631331,1720594240145,-500.0,0.00013698,2]
[331631332,1720594240155,-2600.9,0.00013698,2]
[331631333,1720594240165,-500.0,0.00013698,2]
[331631334,1720594240175,-500.0,0.00013698,2]
[331631335,1720594240185,-500.0,0.00013698,2]
[331631336,1720594240195,-868.58,0.00013698,2]
[331631338,1720594240205,-733.38,0.00013698,2]
[331631340,1720594240215,-2711.24,0.00013698,2]
[331631342,1720594240224,-500.0,0.00013698,2]
[331631344,1720594240235,-500.0,0.00013698,2]
[331631346,1720594240245,-500.0,0.00013698,2]
[331631348,1720594240255,-663.0,0.00013698,2]
[331631350,1720594240266,-500.0,0.00013698,2]
[331631352,1720594240276,-939.62,0.00013698,2]
[331631354,1720594240285,-500.0,0.00013698,2]
[331631356,1720594240295,-1349.74,0.00013698,2]
[331631358,1720594240305,-575.46,0.00013698,2]
[331631360,1720594240315,-599.82,0.00013698,2]
[331631363,1720594240326,-1093.32,0.00013698,2]
[331631365,1720594240336,-789.59,0.00013698,2]
[331631366,1720594240346,-678.13,0.00013698,2]
[331631367,1720594240356,-500.0,0.00013698,2]
[331631368,1720594240366,-658.66,0.00013698,2]
[331631369,1720594240376,-1416.56,0.00013698,2]
[331631370,1720594240389,-505.97150971,0.00013698,2]
[331631371,1720594240399,-500.0,0.00013698,2]
[331631372,1720594240410,-500.0,0.00013698,2]
[331631373,1720594240423,-500.0,0.00013698,2]
[331631374,1720594240434,-510.65,0.00013698,2]
[331631375,1720594240445,-500.0,0.00013698,2]
[331631376,1720594240455,-500.0,0.00013698,2]
[331631377,1720594240465,-503.1,0.00013698,2]
[331631378,1720594240476,-1055.82,0.00013698,2]
[331631379,1720594240486,-755.43,0.00013698,2]
[331631380,1720594240496,-500.0,0.00013698,2]
[331631381,1720594240506,-2599.48,0.00013698,2]
[331631382,1720594240517,-596.37,0.00013698,2]
[331631383,1720594240527,-1140.28,0.00013698,2]
[331631384,1720594240538,-732.3,0.00013698,2]
[331631385,1720594240548,-515.78,0.00013698,2]
[331631386,1720594240558,-500.0,0.00013698,2]